[Event "Early-Titled-Tuesday-Blitz-October-10-2023"]
[Site "Chess.com"]
[Date "2023.10.10"]
[Round "5"]
[White "kleopl"]
[Black "ilm2034"]
[Result "1-0"]
[WhiteElo "2470"]
[BlackElo "2572"]
[TimeControl "180+1"]
[EndTime "8:55:03 PDT"]
[Termination "kleopl won by resignation"]

1. e4 {[%clk 0:03:00.9]} 1... d6 {[%clk 0:02:53.7]} 2. d4 {[%clk 0:03:00.2]}
2... Nf6 {[%clk 0:02:54.1]} 3. Nc3 {[%clk 0:03:00.1]} 3... Nbd7 {[%clk
0:02:52.2]} 4. Be3 {[%clk 0:02:57.8]} 4... e5 {[%clk 0:02:50.9]} 5. Nge2 {[%clk
0:02:56.3]} 5... Be7 {[%clk 0:02:49.5]} 6. h3 {[%clk 0:02:53.4]} 6... c6 {[%clk
0:02:47.3]} 7. Qd2 {[%clk 0:02:53]} 7... Qa5 {[%clk 0:02:47.9]} 8. O-O-O {[%clk
0:02:49.7]} 8... Nb6 {[%clk 0:02:46.1]} 9. Ng3 {[%clk 0:02:44.6]} 9... Be6
{[%clk 0:02:43.4]} 10. Kb1 {[%clk 0:02:36.4]} 10... O-O {[%clk 0:02:34.9]} 11.
Nd5 {[%clk 0:02:17.6]} 11... Qa4 {[%clk 0:02:07.4]} 12. b3 {[%clk 0:02:13.1]}
12... Qa3 {[%clk 0:02:04.4]} 13. Nxe7+ {[%clk 0:02:10.4]} 13... Kh8 {[%clk
0:02:04.4]} 14. Nef5 {[%clk 0:01:36.6]} 14... a5 {[%clk 0:01:59.6]} 15. Qc1
{[%clk 0:01:35.9]} 15... Qxc1+ {[%clk 0:01:56.7]} 16. Bxc1 {[%clk 0:01:27.5]}
16... a4 {[%clk 0:01:52.4]} 17. Bb2 {[%clk 0:01:25.4]} 17... axb3 {[%clk
0:01:51.3]} 18. axb3 {[%clk 0:01:26.3]} 18... exd4 {[%clk 0:01:47]} 19. Bxd4
{[%clk 0:01:22.7]} 19... c5 {[%clk 0:01:43.9]} 20. Bb2 {[%clk 0:01:20]} 20... d5
{[%clk 0:01:39.6]} 21. exd5 {[%clk 0:01:16]} 21... Nbxd5 {[%clk 0:01:37.6]} 22.
Bc4 {[%clk 0:01:03.2]} 22... b5 {[%clk 0:01:30.8]} 23. Bxd5 {[%clk 0:01:00.7]}
23... Nxd5 {[%clk 0:01:29.1]} 24. Bxg7+ {[%clk 0:00:58.7]} 24... Kg8 {[%clk
0:01:29.5]} 25. Bxf8 {[%clk 0:00:58.6]} 25... Kxf8 {[%clk 0:01:30.4]} 26. Rxd5
{[%clk 0:00:52.4]} 26... Bxd5 {[%clk 0:01:31.3]} 27. Ne3 {[%clk 0:00:52.6]}
27... Be6 {[%clk 0:01:29.5]} 28. Rd1 {[%clk 0:00:51.1]} 28... c4 {[%clk
0:01:29.5]} 29. bxc4 {[%clk 0:00:50.6]} 29... bxc4 {[%clk 0:01:30.4]} 30. Rd4
{[%clk 0:00:46.1]} 30... c3 {[%clk 0:01:26.4]} 31. Ne4 {[%clk 0:00:32]} 31...
Ra3 {[%clk 0:01:20.3]} 32. Nd5 {[%clk 0:00:25.8]} 32... f5 {[%clk 0:01:05.5]}
33. Nexc3 {[%clk 0:00:24.9]} 33... Kf7 {[%clk 0:01:05.7]} 34. Kb2 {[%clk
0:00:23.9]} 34... Ra5 {[%clk 0:01:05.7]} 35. Nf4 {[%clk 0:00:22.8]} 35... Bc8
{[%clk 0:01:06]} 36. Rc4 {[%clk 0:00:22.6]} 36... Ba6 {[%clk 0:01:06]} 37. Rc7+
{[%clk 0:00:22.5]} 37... Kf6 {[%clk 0:01:06]} 38. Rxh7 {[%clk 0:00:22.3]} 38...
Bf1 {[%clk 0:01:05.2]} 39. h4 {[%clk 0:00:20.9]} 39... Ra8 {[%clk 0:01:04]} 40.
Rh6+ {[%clk 0:00:20.1]} 40... Ke5 {[%clk 0:01:04.1]} 41. g3 {[%clk 0:00:20]}
41... Rb8+ {[%clk 0:01:03.8]} 42. Kc1 {[%clk 0:00:20.3]} 42... Kd4 {[%clk
0:01:04.3]} 43. Nce2+ {[%clk 0:00:19.6]} 43... Ke4 {[%clk 0:01:04.5]} 44. Re6+
{[%clk 0:00:19.5]} 44... Kf3 {[%clk 0:01:05]} 45. Nd4+ {[%clk 0:00:17.7]} 45...
Kxf2 {[%clk 0:01:04.9]} 46. Nfe2 {[%clk 0:00:17.7]} 46... Bh3 {[%clk 0:01:03.9]}
47. Rf6 {[%clk 0:00:16.7]} 47... Ke3 {[%clk 0:01:02]} 48. h5 {[%clk 0:00:16.5]}
48... Bg4 {[%clk 0:01:01.7]} 49. h6 {[%clk 0:00:14.3]} 49... Rh8 {[%clk
0:00:49.1]} 50. Re6+ {[%clk 0:00:13]} 50... Kf2 {[%clk 0:00:49.2]} 51. Nf4
{[%clk 0:00:11.4]} 51... Rd8 {[%clk 0:00:49.8]} 52. Nd3+ {[%clk 0:00:08.1]}
52... Kxg3 {[%clk 0:00:49.9]} 53. Nc6 {[%clk 0:00:08.2]} 53... Rh8 {[%clk
0:00:49.5]} 54. Nce5 {[%clk 0:00:08.3]} 54... Bh3 {[%clk 0:00:49.7]} 55. Nf7
{[%clk 0:00:08.4]} 55... Rh7 {[%clk 0:00:50.2]} 56. Rg6+ {[%clk 0:00:07.8]}
56... Kh4 {[%clk 0:00:48]} 57. Ng5 {[%clk 0:00:07.4]} 57... Rh8 {[%clk
0:00:47.8]} 58. Nxh3 {[%clk 0:00:07.1]} 58... Kxh3 {[%clk 0:00:46.7]} 59. Rf6
{[%clk 0:00:07.5]} 59... Kg4 {[%clk 0:00:46.9]} 60. Ne5+ {[%clk 0:00:06.5]}
60... Kh3 {[%clk 0:00:43.1]} 61. Rg6 {[%clk 0:00:05.6]} 61... f4 {[%clk
0:00:42.9]} 62. Nf7 {[%clk 0:00:05.8]} 62... Ra8 {[%clk 0:00:41]} 63. h7 {[%clk
0:00:05.3]} 63... f3 {[%clk 0:00:40.8]} 64. h8=Q+ {[%clk 0:00:04.9]} 64... Rxh8
{[%clk 0:00:40.5]} 65. Nxh8 {[%clk 0:00:05.8]} 65... f2 {[%clk 0:00:41.3]} 66.
Rf6 {[%clk 0:00:05.4]} 66... Kg2 {[%clk 0:00:42.2]} 67. Rxf2+ {[%clk 0:00:05.5]}
67... Kxf2 {[%clk 0:00:42.9]} 68. Kd2 {[%clk 0:00:06.3]} 68... Kf3 {[%clk
0:00:43.4]} 69. Kd3 {[%clk 0:00:07.2]} 69... Kf4 {[%clk 0:00:43.9]} 70. Kd4
{[%clk 0:00:08.1]} 70... Kf5 {[%clk 0:00:44.4]} 71. Kd5 {[%clk 0:00:08.6]} 71...
Kf6 {[%clk 0:00:44.8]} 72. c4 {[%clk 0:00:08.9]} 72... Ke7 {[%clk 0:00:45.3]}
73. Kc6 {[%clk 0:00:09.4]} 73... Kd8 {[%clk 0:00:45.9]} 74. Kb7 {[%clk
0:00:09.2]} 74... Kd7 {[%clk 0:00:46.8]} 75. c5 {[%clk 0:00:09.5]} 75... Ke6
{[%clk 0:00:47.2]} 76. c6 {[%clk 0:00:10.4]} 76... Kf6 {[%clk 0:00:47.7]} 77. c7
{[%clk 0:00:10.8]} 77... Kg7 {[%clk 0:00:48.6]} 78. c8=Q {[%clk 0:00:10.4]}
78... Kh7 {[%clk 0:00:48.9]} 79. Qd7+ {[%clk 0:00:10.3]} 79... Kg8 {[%clk
0:00:49]} 80. Qc7 {[%clk 0:00:08.4]} 80... Kxh8 {[%clk 0:00:47.8]} 81. Kc6
{[%clk 0:00:07.3]} 81... Kg8 {[%clk 0:00:48.4]} 82. Kd6 {[%clk 0:00:07.8]} 82...
Kh8 {[%clk 0:00:49.3]} 83. Ke6 {[%clk 0:00:08.3]} 83... Kg8 {[%clk 0:00:50.2]}
84. Kf6 {[%clk 0:00:08.8]} 1-0

[Event "Early-Titled-Tuesday-Blitz-October-10-2023"]
[Site "Chess.com"]
[Date "2023.10.10"]
[Round "5"]
[White "Pawnpusher1245"]
[Black "a-z30"]
[Result "1-0"]
[WhiteElo "2333"]
[BlackElo "2479"]
[TimeControl "180+1"]
[EndTime "8:55:08 PDT"]
[Termination "Pawnpusher1245 won by checkmate"]

1. e4 {[%clk 0:02:47.6]} 1... d6 {[%clk 0:03:00.1]} 2. d4 {[%clk 0:02:42.3]}
2... Nf6 {[%clk 0:03:00.2]} 3. Nc3 {[%clk 0:02:40.7]} 3... g6 {[%clk 0:03:00.2]}
4. Be3 {[%clk 0:02:40.5]} 4... Bg7 {[%clk 0:02:59.1]} 5. Qd2 {[%clk 0:02:40.6]}
5... h6 {[%clk 0:02:54.3]} 6. O-O-O {[%clk 0:02:31.2]} 6... c6 {[%clk
0:02:47.4]} 7. h4 {[%clk 0:02:26.8]} 7... Nbd7 {[%clk 0:02:42]} 8. h5 {[%clk
0:02:17.9]} 8... g5 {[%clk 0:02:36.9]} 9. f4 {[%clk 0:02:12.9]} 9... Ng4 {[%clk
0:02:33.4]} 10. fxg5 {[%clk 0:02:07.1]} 10... Nxe3 {[%clk 0:02:32]} 11. Qxe3
{[%clk 0:02:08]} 11... hxg5 {[%clk 0:02:31.9]} 12. Kb1 {[%clk 0:02:04.5]} 12...
e5 {[%clk 0:02:17.6]} 13. d5 {[%clk 0:01:54.2]} 13... c5 {[%clk 0:02:07.3]} 14.
Nf3 {[%clk 0:01:45.5]} 14... Bh6 {[%clk 0:01:40.6]} 15. Qf2 {[%clk 0:01:24.3]}
15... Nf6 {[%clk 0:01:33.5]} 16. Bb5+ {[%clk 0:01:17.2]} 16... Kf8 {[%clk
0:01:32.8]} 17. Nd2 {[%clk 0:01:08.3]} 17... a6 {[%clk 0:01:22.9]} 18. Be2
{[%clk 0:01:03.4]} 18... Ng4 {[%clk 0:01:06]} 19. Bxg4 {[%clk 0:01:00.5]} 19...
Bxg4 {[%clk 0:01:06.9]} 20. Rdf1 {[%clk 0:01:00.3]} 20... Qe7 {[%clk 0:01:04.2]}
21. Nd1 {[%clk 0:00:45.7]} 21... Bxd1 {[%clk 0:00:58.6]} 22. Rxd1 {[%clk
0:00:46.6]} 22... g4 {[%clk 0:00:38]} 23. Nf1 {[%clk 0:00:46]} 23... Bf4 {[%clk
0:00:30.8]} 24. g3 {[%clk 0:00:45]} 24... Bg5 {[%clk 0:00:30.5]} 25. Nh2 {[%clk
0:00:27.1]} 25... Qd7 {[%clk 0:00:16.2]} 26. Qe2 {[%clk 0:00:26.2]} 26... Kg7
{[%clk 0:00:11.9]} 27. Nxg4 {[%clk 0:00:23]} 27... Rag8 {[%clk 0:00:11.8]} 28.
Qf3 {[%clk 0:00:20.5]} 28... Kf8 {[%clk 0:00:10.3]} 29. Rdf1 {[%clk 0:00:19.8]}
29... Rh7 {[%clk 0:00:06.5]} 30. h6 {[%clk 0:00:18.3]} 30... Rg6 {[%clk
0:00:05.6]} 31. Qf5 {[%clk 0:00:15.2]} 31... Qxf5 {[%clk 0:00:03.5]} 32. exf5
{[%clk 0:00:13.7]} 32... Rg8 {[%clk 0:00:03.3]} 33. c4 {[%clk 0:00:12.4]} 33...
b5 {[%clk 0:00:02.7]} 34. b3 {[%clk 0:00:12]} 34... b4 {[%clk 0:00:02.8]} 35.
Kb2 {[%clk 0:00:11.6]} 35... f6 {[%clk 0:00:03.7]} 36. a3 {[%clk 0:00:11.6]}
36... a5 {[%clk 0:00:01.7]} 37. axb4 {[%clk 0:00:12]} 37... cxb4 {[%clk
0:00:01.9]} 38. Ra1 {[%clk 0:00:12.1]} 38... Ra7 {[%clk 0:00:02.7]} 39. Ra4
{[%clk 0:00:11.5]} 39... Rh8 {[%clk 0:00:03.6]} 40. Kc2 {[%clk 0:00:09.6]} 40...
Kf7 {[%clk 0:00:02.8]} 41. Kd3 {[%clk 0:00:09.6]} 41... Ke7 {[%clk 0:00:03.1]}
42. Ke4 {[%clk 0:00:09.6]} 42... Kd7 {[%clk 0:00:03.5]} 43. Rha1 {[%clk
0:00:09.1]} 43... Kc7 {[%clk 0:00:04.4]} 44. Rxa5 {[%clk 0:00:09.4]} 44... Rxa5
{[%clk 0:00:04.6]} 45. Rxa5 {[%clk 0:00:09.7]} 45... Bxh6 {[%clk 0:00:05.4]} 46.
Rb5 {[%clk 0:00:09]} 46... Bg5 {[%clk 0:00:04.4]} 47. Rxb4 {[%clk 0:00:08.8]}
47... Rh3 {[%clk 0:00:04.4]} 48. Kf3 {[%clk 0:00:07.9]} 48... Rh1 {[%clk
0:00:05]} 49. Ra4 {[%clk 0:00:07.8]} 49... Re1 {[%clk 0:00:05.3]} 50. Nf2 {[%clk
0:00:07.2]} 50... Re3+ {[%clk 0:00:04.1]} 51. Kg2 {[%clk 0:00:07.5]} 51... Rxb3
{[%clk 0:00:05]} 52. Ra6 {[%clk 0:00:06.8]} 52... Rc3 {[%clk 0:00:02.9]} 53.
Rc6+ {[%clk 0:00:07.7]} 53... Kd7 {[%clk 0:00:03.1]} 54. Ne4 {[%clk 0:00:08.2]}
54... Rc2+ {[%clk 0:00:03.3]} 55. Kf3 {[%clk 0:00:06.7]} 55... Bc1 {[%clk
0:00:03.7]} 56. Rxd6+ {[%clk 0:00:06.3]} 56... Ke7 {[%clk 0:00:03.1]} 57. Re6+
{[%clk 0:00:06.9]} 57... Kd7 {[%clk 0:00:02.6]} 58. Nxf6+ {[%clk 0:00:06.5]}
58... Kc8 {[%clk 0:00:02.5]} 59. Ne4 {[%clk 0:00:07.1]} 59... Kb7 {[%clk
0:00:03.3]} 60. f6 {[%clk 0:00:05.9]} 60... Bb2 {[%clk 0:00:04.2]} 61. f7 {[%clk
0:00:05.9]} 61... Rc1 {[%clk 0:00:04.2]} 62. f8=Q {[%clk 0:00:05.1]} 62... Rf1+
{[%clk 0:00:05.1]} 63. Nf2 {[%clk 0:00:05.2]} 63... Bd4 {[%clk 0:00:05.9]} 64.
Qf7+ {[%clk 0:00:05.6]} 64... Kc8 {[%clk 0:00:06]} 65. Re8# {[%clk 0:00:06.2]}
1-0

[Event "Early-Titled-Tuesday-Blitz-October-10-2023"]
[Site "Chess.com"]
[Date "2023.10.10"]
[Round "5"]
[White "Dedic8"]
[Black "GMBenjaminBok"]
[Result "1/2-1/2"]
[WhiteElo "2845"]
[BlackElo "3015"]
[TimeControl "180+1"]
[EndTime "8:55:10 PDT"]
[Termination "Game drawn by stalemate"]

1. d4 {[%clk 0:03:00.9]} 1... Nf6 {[%clk 0:02:58.5]} 2. c4 {[%clk 0:03:00.9]}
2... e6 {[%clk 0:02:58.9]} 3. Nc3 {[%clk 0:03:01.4]} 3... Bb4 {[%clk 0:02:59.2]}
4. e3 {[%clk 0:03:01]} 4... O-O {[%clk 0:02:59.2]} 5. Bd3 {[%clk 0:03:01.7]}
5... d5 {[%clk 0:02:59.4]} 6. cxd5 {[%clk 0:03:00.5]} 6... exd5 {[%clk
0:02:59.1]} 7. a3 {[%clk 0:02:59.4]} 7... Bd6 {[%clk 0:02:58.4]} 8. Nge2 {[%clk
0:02:53.2]} 8... Re8 {[%clk 0:02:57.8]} 9. Qc2 {[%clk 0:02:50.7]} 9... b6 {[%clk
0:02:34.7]} 10. Nb5 {[%clk 0:02:07.3]} 10... c5 {[%clk 0:02:31.3]} 11. Nxd6
{[%clk 0:01:59.7]} 11... Qxd6 {[%clk 0:02:32.2]} 12. dxc5 {[%clk 0:01:57.6]}
12... bxc5 {[%clk 0:02:33.1]} 13. b3 {[%clk 0:01:51.1]} 13... Ba6 {[%clk
0:02:20.9]} 14. Bxa6 {[%clk 0:01:46]} 14... Qxa6 {[%clk 0:01:42.6]} 15. O-O
{[%clk 0:01:45.2]} 15... Nbd7 {[%clk 0:01:41.8]} 16. Nf4 {[%clk 0:01:38.4]}
16... Rab8 {[%clk 0:01:27.5]} 17. Bb2 {[%clk 0:01:33.6]} 17... Qb6 {[%clk
0:01:17.9]} 18. b4 {[%clk 0:01:30.6]} 18... cxb4 {[%clk 0:01:08.3]} 19. Bd4
{[%clk 0:01:22.1]} 19... Qd6 {[%clk 0:01:07.4]} 20. axb4 {[%clk 0:01:16.1]}
20... Rxb4 {[%clk 0:01:08.3]} 21. Bxf6 {[%clk 0:00:49.8]} 21... Nxf6 {[%clk
0:01:09.2]} 22. Rxa7 {[%clk 0:00:49.8]} 22... h6 {[%clk 0:01:07.3]} 23. h3
{[%clk 0:00:46.1]} 23... Qb8 {[%clk 0:00:41.8]} 24. Rfa1 {[%clk 0:00:38]} 24...
d4 {[%clk 0:00:34.1]} 25. Qa2 {[%clk 0:00:24.9]} 25... Rb7 {[%clk 0:00:27.5]}
26. Ra8 {[%clk 0:00:16.4]} 26... Qxa8 {[%clk 0:00:14.4]} 27. Qxa8 {[%clk
0:00:17.3]} 27... Rxa8 {[%clk 0:00:14.7]} 28. Rxa8+ {[%clk 0:00:17.3]} 28... Kh7
{[%clk 0:00:15.6]} 29. exd4 {[%clk 0:00:17.6]} 29... g5 {[%clk 0:00:11.5]} 30.
Nd3 {[%clk 0:00:15.5]} 30... Rb1+ {[%clk 0:00:08.8]} 31. Kh2 {[%clk 0:00:15]}
31... Rd1 {[%clk 0:00:09.5]} 32. Ne5 {[%clk 0:00:08.7]} 32... Ne4 {[%clk
0:00:09.5]} 33. Ra7 {[%clk 0:00:07.5]} 33... Rxd4 {[%clk 0:00:08]} 34. Rxf7+
{[%clk 0:00:07.6]} 34... Kg8 {[%clk 0:00:08.4]} 35. Re7 {[%clk 0:00:05.9]} 35...
Nxf2 {[%clk 0:00:07.3]} 36. Re6 {[%clk 0:00:03.7]} 36... Kg7 {[%clk 0:00:06.1]}
37. Rg6+ {[%clk 0:00:03.9]} 37... Kh7 {[%clk 0:00:06.6]} 38. Re6 {[%clk
0:00:04.3]} 38... Re4 {[%clk 0:00:06.3]} 39. Re7+ {[%clk 0:00:03.7]} 39... Kg8
{[%clk 0:00:06.3]} 40. Ng6 {[%clk 0:00:02.9]} 40... Rxe7 {[%clk 0:00:04.1]} 41.
Nxe7+ {[%clk 0:00:03.8]} 41... Kf7 {[%clk 0:00:04.8]} 42. Nf5 {[%clk 0:00:04.5]}
42... h5 {[%clk 0:00:05.1]} 43. Kg3 {[%clk 0:00:03.8]} 43... Ne4+ {[%clk
0:00:05.3]} 44. Kf3 {[%clk 0:00:04.1]} 44... Nf6 {[%clk 0:00:05.6]} 45. Ne3
{[%clk 0:00:04.1]} 45... Ke6 {[%clk 0:00:05.7]} 46. g3 {[%clk 0:00:03.9]} 46...
Ke5 {[%clk 0:00:05.6]} 47. Ng2 {[%clk 0:00:04]} 47... Kd4 {[%clk 0:00:04.7]} 48.
Ne3 {[%clk 0:00:03.7]} 48... Ke5 {[%clk 0:00:04.3]} 49. Ng2 {[%clk 0:00:03.8]}
49... Ne4 {[%clk 0:00:04.7]} 50. Ne3 {[%clk 0:00:03.4]} 50... Nd2+ {[%clk
0:00:04.5]} 51. Ke2 {[%clk 0:00:03.7]} 51... Nb3 {[%clk 0:00:04.8]} 52. Kf3
{[%clk 0:00:04.1]} 52... Nd4+ {[%clk 0:00:05.1]} 53. Kf2 {[%clk 0:00:04.7]}
53... Ke4 {[%clk 0:00:06]} 54. Ng2 {[%clk 0:00:05.2]} 54... Nc6 {[%clk 0:00:05]}
55. h4 {[%clk 0:00:05.5]} 55... gxh4 {[%clk 0:00:03.6]} 56. Nxh4 {[%clk
0:00:05.7]} 56... Ne5 {[%clk 0:00:03.7]} 57. Kg2 {[%clk 0:00:06]} 57... Nd3
{[%clk 0:00:03.1]} 58. Ng6 {[%clk 0:00:05.4]} 58... Kf5 {[%clk 0:00:03]} 59. Nf4
{[%clk 0:00:05.6]} 59... Nxf4+ {[%clk 0:00:02.2]} 60. gxf4 {[%clk 0:00:06.5]}
60... Kxf4 {[%clk 0:00:03.1]} 61. Kh3 {[%clk 0:00:07.4]} 61... Kg5 {[%clk
0:00:03.7]} 62. Kg3 {[%clk 0:00:08.2]} 62... h4+ {[%clk 0:00:04.6]} 63. Kh3
{[%clk 0:00:09.1]} 63... Kh5 {[%clk 0:00:05.3]} 64. Kg2 {[%clk 0:00:09.5]} 64...
Kg4 {[%clk 0:00:06.2]} 65. Kh2 {[%clk 0:00:10.4]} 65... h3 {[%clk 0:00:07.1]}
66. Kh1 {[%clk 0:00:10.8]} 66... Kg3 {[%clk 0:00:07.8]} 67. Kg1 {[%clk
0:00:11.7]} 67... h2+ {[%clk 0:00:08.7]} 68. Kh1 {[%clk 0:00:12.6]} 68... Kh3
{[%clk 0:00:08.6]} 1/2-1/2

[Event "Early-Titled-Tuesday-Blitz-October-10-2023"]
[Site "Chess.com"]
[Date "2023.10.10"]
[Round "5"]
[White "Shuvalov"]
[Black "carokannlover213"]
[Result "0-1"]
[WhiteElo "2487"]
[BlackElo "2736"]
[TimeControl "180+1"]
[EndTime "8:55:11 PDT"]
[Termination "carokannlover213 won by resignation"]

1. d4 {[%clk 0:03:00.9]} 1... g6 {[%clk 0:03:00.9]} 2. c4 {[%clk 0:03:00.7]}
2... c6 {[%clk 0:03:01.4]} 3. Nc3 {[%clk 0:02:57.8]} 3... Bg7 {[%clk 0:03:01.9]}
4. e4 {[%clk 0:02:57.4]} 4... d6 {[%clk 0:03:01.9]} 5. Nf3 {[%clk 0:02:57.1]}
5... Nf6 {[%clk 0:03:02.1]} 6. Be2 {[%clk 0:02:57]} 6... O-O {[%clk 0:03:02.7]}
7. O-O {[%clk 0:02:57.2]} 7... Nbd7 {[%clk 0:03:03.1]} 8. Re1 {[%clk 0:02:55.5]}
8... e5 {[%clk 0:03:03.1]} 9. Bf1 {[%clk 0:02:53.9]} 9... Re8 {[%clk 0:03:02.6]}
10. g3 {[%clk 0:02:53.6]} 10... exd4 {[%clk 0:03:01.5]} 11. Nxd4 {[%clk
0:02:53.4]} 11... Nc5 {[%clk 0:03:02.1]} 12. Bg2 {[%clk 0:02:52.9]} 12... Ng4
{[%clk 0:02:58.3]} 13. Nb3 {[%clk 0:02:39.2]} 13... Nxb3 {[%clk 0:02:41.3]} 14.
axb3 {[%clk 0:02:40.1]} 14... Qb6 {[%clk 0:02:41.4]} 15. Re2 {[%clk 0:02:34.5]}
15... Bd4 {[%clk 0:02:15.4]} 16. Qf1 {[%clk 0:01:48.4]} 16... Qxb3 {[%clk
0:02:14.4]} 17. h3 {[%clk 0:01:41.6]} 17... Ne5 {[%clk 0:02:06]} 18. Be3 {[%clk
0:01:33.2]} 18... Bxe3 {[%clk 0:01:56]} 19. Rxe3 {[%clk 0:01:34.1]} 19... Qxc4
{[%clk 0:01:55.6]} 20. Rd1 {[%clk 0:01:27.1]} 20... Qxf1+ {[%clk 0:01:52.4]} 21.
Bxf1 {[%clk 0:01:28]} 21... Rd8 {[%clk 0:01:53.1]} 22. f4 {[%clk 0:01:27.7]}
22... Nd7 {[%clk 0:01:28.9]} 23. Rxd6 {[%clk 0:01:27.6]} 23... Re8 {[%clk
0:01:29.3]} 24. e5 {[%clk 0:01:21.3]} 24... Nb6 {[%clk 0:01:00.4]} 25. Ne4
{[%clk 0:01:06.4]} 25... Kg7 {[%clk 0:01:00.2]} 26. Nf6 {[%clk 0:01:05.6]} 26...
Rf8 {[%clk 0:01:00.8]} 27. g4 {[%clk 0:01:02.8]} 27... Be6 {[%clk 0:01:00.5]}
28. Bd3 {[%clk 0:00:57.8]} 28... Rad8 {[%clk 0:00:50.8]} 29. Rxd8 {[%clk
0:00:55.4]} 29... Rxd8 {[%clk 0:00:50.4]} 30. f5 {[%clk 0:00:56.1]} 30... Bc4
{[%clk 0:00:43.9]} 31. Be4 {[%clk 0:00:52]} 31... Rd1+ {[%clk 0:00:41.9]} 32.
Kh2 {[%clk 0:00:49.7]} 32... Rd2+ {[%clk 0:00:41.2]} 33. Kg3 {[%clk 0:00:50]}
33... Rxb2 {[%clk 0:00:41.4]} 34. Ne8+ {[%clk 0:00:45.9]} 34... Kf8 {[%clk
0:00:40.8]} 35. Nd6 {[%clk 0:00:46.1]} 35... Ba2 {[%clk 0:00:12.3]} 36. e6
{[%clk 0:00:34.8]} 36... fxe6 {[%clk 0:00:10.3]} 37. fxg6 {[%clk 0:00:27.2]}
37... hxg6 {[%clk 0:00:09.9]} 38. Bxg6 {[%clk 0:00:26.5]} 38... Nc4 {[%clk
0:00:08.7]} 39. Rf3+ {[%clk 0:00:22.5]} 39... Kg7 {[%clk 0:00:09]} 40. Nxc4
{[%clk 0:00:18.5]} 40... Bxc4 {[%clk 0:00:09.9]} 41. Be8 {[%clk 0:00:18]} 41...
a5 {[%clk 0:00:09.2]} 42. g5 {[%clk 0:00:16.5]} 42... a4 {[%clk 0:00:08.7]} 43.
h4 {[%clk 0:00:14.7]} 43... Rb3 {[%clk 0:00:08.1]} 44. h5 {[%clk 0:00:14.3]}
44... Rxf3+ {[%clk 0:00:07.3]} 45. Kxf3 {[%clk 0:00:15.2]} 45... a3 {[%clk
0:00:07.7]} 46. h6+ {[%clk 0:00:15.6]} 46... Kf8 {[%clk 0:00:08.2]} 47. g6
{[%clk 0:00:15.4]} 47... a2 {[%clk 0:00:08.7]} 48. g7+ {[%clk 0:00:15.1]} 48...
Ke7 {[%clk 0:00:09.3]} 49. g8=Q {[%clk 0:00:14.5]} 49... a1=Q {[%clk 0:00:09.9]}
50. Qf7+ {[%clk 0:00:14.3]} 50... Kd6 {[%clk 0:00:10.3]} 51. Qd7+ {[%clk
0:00:14.4]} 51... Kc5 {[%clk 0:00:10.4]} 52. Qe7+ {[%clk 0:00:14]} 52... Kb5
{[%clk 0:00:10.5]} 53. Qg7 {[%clk 0:00:13.2]} 53... Qf1+ {[%clk 0:00:09.6]} 54.
Kg3 {[%clk 0:00:12.6]} 54... Qe1+ {[%clk 0:00:10.2]} 55. Kf4 {[%clk 0:00:11.7]}
55... Qf2+ {[%clk 0:00:10]} 56. Kg5 {[%clk 0:00:11.9]} 56... Qf5+ {[%clk
0:00:10.2]} 57. Kh4 {[%clk 0:00:11.5]} 57... Qf4+ {[%clk 0:00:10.8]} 58. Qg4
{[%clk 0:00:05.8]} 58... Qxh6+ {[%clk 0:00:10.6]} 59. Bh5 {[%clk 0:00:06.7]}
59... Qf6+ {[%clk 0:00:10.3]} 60. Kg3 {[%clk 0:00:06.2]} 60... Qe5+ {[%clk
0:00:10.4]} 61. Kh4 {[%clk 0:00:06.1]} 61... c5 {[%clk 0:00:08.4]} 62. Bg6
{[%clk 0:00:05.6]} 62... Qd4 {[%clk 0:00:08.3]} 63. Kg5 {[%clk 0:00:04.5]} 63...
Qxg4+ {[%clk 0:00:07.9]} 64. Kxg4 {[%clk 0:00:05.4]} 64... Bd5 {[%clk 0:00:08]}
0-1